bitfinex-derivatives/quotes_SOLF0:USTF0_20250228
["timestamp","ask_amount","ask_price","bid_price","bid_amount"]
[1740757563453,0.05165196,145.89,145.87,0.04591422]
[1740757563649,0.05165196,145.89,145.81,17.06]
[1740757563845,17.06,145.95,145.78,17.06]
[1740757563846,190.0,145.93,145.78,17.06]
[1740757564247,13.7093,145.92,145.78,17.06]
[1740757564849,0.04897587,145.86,145.84,0.04756927]
[1740757565046,0.04897587,145.86,145.78,17.06]
[1740757565252,17.06,145.93,145.78,17.06]
[1740757566153,0.04522749,145.87,145.84,9.542e-05]
[1740757566353,6.8596,145.81,145.75,26.37621142]
[1740757566556,17.06,145.87,145.75,26.37621142]
[1740757566853,6.8594,145.82,145.75,17.06]
[1740757567055,3.615,145.86,145.75,17.06]
[1740757567557,0.04520563,145.82,145.77,6.861]
[1740757567748,0.04520563,145.82,145.75,17.06]
[1740757568149,0.04520563,145.82,145.73,235.32]
[1740757568150,0.04520563,145.82,145.73,15.86]
[1740757568346,20.655,145.86,145.73,15.86]
[1740757568555,6.90487696,145.79,145.73,22.7232]
[1740757568762,0.04417696,145.79,145.73,15.86]
[1740757569258,0.04417696,145.79,145.73,10.1078]
[1740757569557,190.0,145.78,145.72,1.37249519]
[1740757569757,0.04417696,145.79,145.73,17.04]
[1740757571155,190.0,145.98,145.73,215.48]
[1740757571357,17.19228962,145.97,145.74,3.7085]
[1740757571555,1.15662976,145.96,145.74,3.7085]
[1740757571861,27.86538934,145.94,145.74,3.7085]
[1740757572062,6.8575,145.85,145.77,6.8612]
[1740757572359,6.90460633,145.85,145.83,0.04427238]
[1740757572557,6.8584,145.84,145.76,6.8617]
[1740757573056,3.6157,145.9,145.76,6.8617]
[1740757573260,3.6157,145.9,145.74,3.6349]
[1740757573658,0.04891149,145.83,145.77,6.8612]
[1740757573860,0.04891149,145.83,145.75,15.12]
[1740757574060,3.6157,145.9,145.75,15.12]
[1740757574260,0.05010801,145.8,145.75,15.12]
[1740757574555,3.7408,145.89,145.75,15.12]
[1740757574762,0.05160092,145.79,145.75,15.12]
[1740757574962,6.8562,145.88,145.75,15.12]
[1740757575565,3.7408,145.89,145.75,15.12]
[1740757575864,190.0,145.88,145.75,15.12]
[1740757576066,0.04904553,145.83,145.81,0.05111927]
[1740757577762,0.04904553,145.83,145.81,6.91041927]
[1740757578875,0.04904553,145.83,145.81,0.05111927]
[1740757580066,7.3666,145.9,145.81,0.05111927]
[1740757580268,7.3666,145.9,145.79,17.04]
[1740757580967,7.3666,145.9,145.79,43.9]
[1740757581169,0.04866059,145.86,145.83,0.04999878]
[1740757581568,0.04866059,145.86,145.83,6.90839878]
[1740757581770,41.43912923,145.96,145.83,6.90839878]
[1740757581771,101.94581687,145.99,145.85,20.65]
[1740757581965,101.94581687,145.99,145.86,20.6535]
[1740757582271,101.94581687,145.99,145.86,236.3035]
[1740757582570,101.94581687,145.99,145.87,1.37108384]
[1740757582771,101.94581687,145.99,145.98,6.8514]
[1740757582969,82.33681687,145.99,145.98,23.8714]
[1740757584467,82.33681687,145.99,145.97,0.05079626]
[1740757584873,74.08042753,145.99,145.97,0.05079626]
[1740757585075,0.04523265,146.0,145.97,0.05079626]
[1740757585587,0.04523265,146.0,145.87,196.37108384]
[1740757585588,0.04523265,146.0,145.92,17.02]
[1740757585883,17.02,146.03,145.87,220.77108384]
[1740757586074,3.7397,146.02,145.88,17.02]
[1740757586272,6.8528,145.96,145.88,17.02]
[1740757586674,0.04875312,145.93,145.91,0.05115944]
[1740757586978,6.8524,145.96,145.88,17.02]
[1740757587178,0.0459343,145.93,145.91,0.04824866]
[1740757588881,3.43e-05,145.93,145.91,0.04824866]
[1740757589282,6.8469,146.08,146.0,6.8504]
[1740757589488,10.6001,146.08,146.01,17.0]
[1740757589682,3.7532,146.08,146.01,17.0]
[1740757590383,0.04512721,146.06,146.03,0.04653807]
[1740757592081,0.04512721,146.06,146.03,6.89543807]
[1740757592282,0.04512721,146.06,146.03,0.04653807]
[1740757592781,0.04512721,146.06,146.03,17.04653807]
[1740757592990,0.04512721,146.06,146.03,0.04653807]
[1740757593183,0.04512721,146.06,146.0,15.09]
[1740757594188,6.8497,146.02,146.0,15.09]
[1740757594487,3.7335,146.05,146.0,15.09]
[1740757594685,0.04893529,146.02,146.0,15.13646769]
[1740757595584,0.04893529,146.02,146.01,6.85]
[1740757595785,0.04893529,146.02,146.0,15.13646769]
[1740757595985,0.04893529,146.02,146.0,21.98676769]
[1740757596185,0.04893529,146.02,146.0,15.13646769]
[1740757597082,6.85,146.01,146.0,15.13646769]
[1740757597280,0.04893529,146.02,146.0,15.13646769]
[1740757599691,0.04893529,146.02,146.01,6.85]
[1740757599888,0.04893529,146.02,146.0,15.13646769]
[1740757600190,6.89863529,146.02,146.0,15.13646769]
[1740757600488,0.04893529,146.02,146.0,15.13646769]
[1740757601889,6.85,146.01,146.0,15.13646769]
[1740757602390,6.89863529,146.02,146.0,15.13646769]
[1740757602591,0.04893529,146.02,146.0,15.13646769]
[1740757602983,6.85,146.01,146.0,15.13646769]
[1740757603585,6.85,146.01,146.0,6.769e-05]
[1740757603891,10.27,146.01,146.0,6.769e-05]
[1740757604093,10.6097,146.01,146.0,6.769e-05]
[1740757604289,14.0297,146.01,146.0,6.769e-05]
[1740757604793,10.6097,146.01,146.0,6.769e-05]
[1740757605195,0.04893529,146.02,146.0,6.769e-05]
[1740757606489,6.85,146.01,146.0,6.769e-05]
[1740757606694,0.04893529,146.02,146.0,6.769e-05]
[1740757609201,0.04893529,146.02,146.0,6.85046769]
[1740757609393,0.04893529,146.02,146.0,23.83046769]
[1740757609897,0.04893529,146.02,146.01,6.85]
[1740757610496,6.8476,146.07,146.02,6.8495]
[1740757610795,3.7943,146.1,146.0,16.98]
[1740757611189,3.7943,146.1,146.04,6.8485]
[1740757611390,3.7943,146.1,145.96,48.56]
[1740757611391,206.98,146.09,145.96,48.56]
[1740757611700,0.05104708,146.04,146.01,0.04741646]
[1740757611996,0.05104708,146.04,146.01,1.646e-05]
[1740757612192,6.8496,146.02,146.01,1.646e-05]
[1740757612703,27.2496,146.02,146.01,1.646e-05]
[1740757613502,190.0,146.01,145.88,9.31621142]
[1740757613799,6.8527,145.96,145.88,9.31621142]
[1740757614098,3.8041,146.03,145.88,9.31621142]
[1740757614299,3.8041,146.03,145.88,16.17201142]
[1740757614500,0.04732111,145.97,145.94,0.04357965]
[1740757614796,3.8041,146.03,145.9,16.98]
[1740757615099,0.04848708,145.97,145.94,0.05122148]
[1740757615299,0.04848708,145.97,145.94,2.148e-05]
[1740757615606,6.8549,145.91,145.88,9.41621142]
[1740757615898,190.0,145.99,145.88,9.41621142]
[1740757616096,16.96,146.0,145.88,9.41621142]
[1740757616493,0.04519625,145.95,145.88,9.41621142]
[1740757616797,6.8557,145.89,145.88,0.1]
[1740757619902,13.6926,146.1,145.88,20.3801]
[1740757620099,3.6146,146.04,145.89,3.5208]
[1740757620304,6.8511,145.99,145.89,3.5208]
[1740757620494,3.6146,146.04,145.9,3.6079]
[1740757620905,0.05061101,145.98,145.95,0.04380949]
[1740757621298,6.8527,145.96,145.95,9.49e-06]
[1740757621700,0.05061101,145.98,145.95,9.49e-06]
[1740757621904,6.90221101,145.98,145.95,9.49e-06]
[1740757622099,0.05061101,145.98,145.95,9.49e-06]
[1740757623703,6.90211101,145.98,145.95,9.49e-06]
[1740757624007,0.05061101,145.98,145.95,9.49e-06]
[1740757624412,28.37650386,146.13,145.95,1.37034179]
[1740757624609,3.5043,146.1,145.95,5.0008323]
[1740757624807,3.5043,146.1,146.02,6.8492]
[1740757625001,3.5043,146.1,146.03,16.96]
[1740757625405,7.3177,146.12,146.04,6.8482]
[1740757625606,0.04437974,146.08,146.05,0.04828966]
[1740757625804,28.37650386,146.13,146.05,0.04828966]
[1740757626306,28.37650386,146.22,146.05,0.04828966]
[1740757626511,28.37650386,146.22,146.04,3.6211]
[1740757626711,28.37650386,146.22,146.05,3.5104]
[1740757627111,0.04542684,146.15,146.12,0.04562854]
[1740757627609,0.05198932,146.15,146.12,0.04942892]
[1740757628812,0.05198932,146.15,146.14,6.8439]
[1740757629012,28.37650386,146.22,146.12,3.82592892]
[1740757629214,28.37650386,146.22,146.15,6.8435]
[1740757629414,28.37650386,146.22,146.12,3.7765]
[1740757630007,28.37650386,146.22,146.12,17.81758003]
[1740757630208,0.05144608,146.18,146.16,0.05008416]
[1740757632706,0.05144608,146.18,146.17,6.8425]
[1740757632910,7.3383,146.25,146.16,0.05008416]
[1740757633107,3.5508,146.32,146.12,16.94]
[1740757633308,8.23188037,146.31,146.12,16.94]
[1740757633513,7.0782,146.31,146.13,15.40972438]
[1740757633710,28.37650386,146.33,146.14,16.66639542]
[1740757633909,28.37650386,146.33,146.15,16.66630178]
[1740757634110,0.0435746,146.25,146.22,0.05185171]
[1740757634310,28.37650386,146.33,146.23,16.94]
[1740757635008,7.166,146.38,146.23,16.94]
[1740757635414,6.88013744,146.32,146.29,0.04883628]
[1740757635720,7.166,146.38,146.23,16.94]
[1740757635917,6.836,146.31,146.29,0.04895476]
[1740757636114,219.04,146.36,146.3,5.79219084]
[1740757636420,219.04,146.36,146.18,16.94]
[1740757636611,219.04,146.36,146.18,30.98108003]
[1740757637019,6.8368,146.3,146.19,25.86]
[1740757637410,6.8383,146.26,146.19,25.86]
[1740757637613,0.04815937,146.26,146.23,0.0481593]
[1740757638512,6.8388,146.25,146.23,0.0481593]
[1740757638713,0.04815937,146.26,146.23,0.0481593]
[1740757639312,6.8393,146.24,146.23,0.0481593]
[1740757639621,0.04815937,146.26,146.19,25.86]
[1740757639818,16.92,146.32,146.19,25.86]
[1740757640721,0.04325719,146.27,146.24,3.581e-05]
[1740757640923,6.8388,146.25,146.24,3.581e-05]
[1740757641322,10.2588,146.25,146.24,3.581e-05]
[1740757641624,17.4817,146.25,146.24,3.581e-05]
[1740757643222,10.6429,146.25,146.19,15.31883581]
[1740757643425,10.6429,146.25,146.11,20.3984]
[1740757643723,7.2229,146.25,146.11,20.3984]
[1740757643924,7.2229,146.25,146.11,3.4784]
[1740757644317,7.2229,146.25,146.08,16.92]
[1740757644520,0.04692522,146.19,146.17,5.225e-05]
[1740757644920,3.42,146.19,146.06,3.4477]
[1740757645126,16.92,146.2,146.06,3.4477]
[1740757645325,16.92,146.2,146.05,3.6738]
[1740757645621,6.8482,146.05,146.04,9.31621142]
[1740757646222,0.04546583,146.06,145.98,1.142e-05]
[1740757646223,6.8505,146.0,145.98,1.142e-05]
[1740757646623,190.0,146.09,145.98,1.142e-05]
[1740757646826,3.7864,146.1,145.98,1.142e-05]
[1740757647328,24.4464,146.1,145.96,74.92327115]
[1740757647523,0.04378633,146.05,145.96,36.87127115]
[1740757647827,6.8543,145.92,145.91,86.53524053]
[1740757648025,16.92,145.92,145.89,98.07170587]
[1740757648329,6.8552,145.9,145.89,98.07170587]
[1740757648530,6.8552,145.9,145.89,87.52810587]
[1740757649027,0.05165737,145.91,145.89,87.52810587]
[1740757649633,6.8552,145.9,145.89,66.47930587]
[1740757649931,10.2752,145.9,145.89,14.26350587]
[1740757650126,10.2752,145.9,145.89,3.44570587]
[1740757651028,6.8552,145.9,145.89,3.44570587]
[1740757651231,6.8552,145.9,145.64,195.0]
[1740757651432,6.8557,145.89,145.78,5.50807789]
[1740757651729,6.8557,145.89,145.79,5.50807789]
[1740757651931,10.2757,145.89,145.8,5.50807789]
[1740757652129,10.2757,145.89,145.81,5.50807789]
[1740757652328,3.42,145.89,145.77,6.8612]
[1740757652531,6.8554,145.9,145.78,5.50012318]
[1740757652734,6.8554,145.9,145.79,5.50012318]
[1740757653032,6.8557,145.89,145.8,5.50012318]
[1740757653335,0.05165737,145.91,145.63,218.98]
[1740757654026,0.05165737,145.91,145.76,16.94]
[1740757654230,0.05165737,145.91,145.82,6.8588]
[1740757654428,16.99165737,145.91,145.83,5.48297573]
[1740757654729,0.05165737,145.91,145.76,16.94]
[1740757654935,0.05165737,145.91,145.88,6.8562]
[1740757655336,0.05165737,145.91,145.88,0.0001]
[1740757655633,0.05165737,145.91,145.9,6.8552]
[1740757655831,0.05165737,145.91,145.88,0.0001]
[1740757656038,0.05165737,145.91,145.9,6.8552]
[1740757656730,0.05165737,145.91,145.88,0.0001]
[1740757657033,0.05165737,145.91,145.88,13.70029059]
[1740757657232,0.05165737,145.91,145.89,5.5063514]
[1740757657431,9.3006866,145.97,145.9,5.50247147]
[1740757657630,9.3006866,145.97,145.91,5.50247147]
[1740757657835,9.3006866,145.97,145.92,5.50247147]
[1740757658037,9.3006866,145.97,145.93,5.50247147]
[1740757658332,9.3006866,145.97,145.92,13.70019059]
[1740757658631,0.04794751,145.96,145.93,6.90041745]
[1740757658829,9.3006866,146.04,145.93,6.8538]
[1740757659024,0.0475342,145.96,145.93,20.60288136]
[1740757659229,9.3006866,146.04,145.93,20.55399059]
[1740757659431,0.04839021,145.96,145.93,13.75110248]
[1740757659731,0.0453483,145.96,145.93,0.0511009]
[1740757659932,0.0453483,145.96,145.85,5.50283329]
[1740757660233,190.0,145.97,145.86,5.50463771]
[1740757660534,6.8542,145.93,145.84,6.858]
[1740757660734,190.0,145.97,145.85,5.50146001]
[1740757660929,0.04828929,145.9,145.8,16.94]
[1740757662234,0.04828929,145.9,145.86,6.8567]
[1740757662437,0.04828929,145.9,145.83,17.22418515]
[1740757663131,0.04828929,145.9,145.83,3.52399456]
[1740757663538,0.04828929,145.9,145.83,17.22418515]
[1740757664033,6.8575,145.86,145.81,2.19]
[1740757664232,0.04828929,145.9,145.81,15.89019059]
[1740757664438,0.04609917,145.85,145.81,2.19]
[1740757664633,232.56326441,145.85,145.81,2.19]
[1740757664834,195.30217465,145.85,145.82,16.94]
[1740757665138,59.60617642,145.85,145.83,16.94]
[1740757665336,5.25167642,145.85,145.83,16.94]
[1740757665538,96.04404776,145.89,145.83,20.36]
[1740757665733,96.04404776,145.89,145.83,16.94]
[1740757666136,0.04427705,145.87,145.85,0.04636812]
[1740757666337,62.16083823,145.87,145.85,0.04636812]
[1740757666537,62.16083823,145.87,145.85,3.46636812]
[1740757666740,62.16083823,145.87,145.86,6.8567]
[1740757667035,59.87563823,145.87,145.85,3.46636812]
[1740757667339,59.87563823,145.87,145.83,5.09717684]
[1740757668231,63.29563823,145.87,145.83,5.09717684]
[1740757668438,0.05051603,145.86,145.84,0.04818125]
[1740757669039,3.47051603,145.86,145.84,0.04818125]
[1740757669437,0.05051603,145.86,145.84,0.04818125]
[1740757671439,3.47051603,145.86,145.84,0.04818125]
[1740757671841,3.47051603,145.86,145.75,16.94]
[1740757672040,3.42,145.86,145.75,16.94]
[1740757672240,6.8586,145.83,145.78,6.8607]
[1740757672544,3.42,145.86,145.75,16.94]
[1740757673141,0.05050147,145.82,145.75,16.94]
[1740757673445,6.8575,145.86,145.81,6.8591]
[1740757673740,3.523,145.93,145.81,16.94]
[1740757673945,0.04332057,145.85,145.81,16.94]
[1740757674148,6.943,145.93,145.81,16.94]
[1740757674347,0.04841066,145.84,145.81,16.94]
[1740757674647,0.04841066,145.84,145.73,219.36]
[1740757674648,0.05160898,145.84,145.73,219.36]
[1740757674845,3.42,145.84,145.74,16.94]
[1740757675046,6.8577,145.85,145.8,6.8596]
[1740757675247,6.943,145.93,145.8,6.8596]
[1740757675444,0.05148956,145.84,145.74,16.94]
[1740757675745,6.943,145.93,145.74,16.94]
[1740757675952,0.04443388,145.8,145.75,16.94]
[1740757676170,6.8592,145.82,145.77,6.861]
[1740757676348,0.04663542,145.79,145.73,16.94]
[1740757676548,20.36,145.88,145.73,16.94]
[1740757676853,0.05003832,145.77,145.73,16.94]
[1740757677150,0.04932547,145.76,145.73,16.94]
[1740757677350,190.0,145.92,145.73,20.38]
[1740757677547,3.4875,145.91,145.73,18.31240101]
[1740757677947,6.9075,145.91,145.73,18.31240101]
[1740757678151,6.9075,145.91,145.74,15.09750684]
[1740757678349,6.9075,145.91,145.75,1.37221269]
[1740757678547,0.04783098,145.84,145.81,0.05208611]
[1740757678749,0.04783098,145.84,145.82,16.92]
[1740757678949,6.8557,145.89,145.82,16.92]
[1740757679151,0.04860493,145.84,145.83,6.8585]
[1740757679352,3.42,145.89,145.84,0.05095121]
[1740757679750,0.05114507,145.88,145.84,0.05095121]
[1740757680154,3.47114507,145.88,145.84,0.05095121]
[1740757680556,6.8575,145.85,145.84,0.05095121]
[1740757680951,10.2775,145.85,145.84,0.05095121]
[1740757681356,0.05114507,145.88,145.75,1.37221269]
[1740757681655,3.42,145.88,145.74,16.92]
[1740757681857,6.8583,145.84,145.74,16.92]
[1740757682051,3.42,145.88,145.74,16.92]
[1740757682257,3.42,145.88,145.74,24.08135339]
[1740757682451,3.42,145.88,145.74,25.45366023]
[1740757682657,0.049722,145.82,145.75,13.7245]
[1740757682858,0.049722,145.82,145.81,6.8594]
[1740757683053,0.049722,145.82,145.81,16.92]
[1740757683252,0.049722,145.82,145.74,1.37230684]
[1740757683453,0.049722,145.82,145.75,16.92]
[1740757683956,10.328822,145.82,145.75,16.92]
[1740757684158,3.469722,145.82,145.75,16.92]
[1740757684856,3.469722,145.82,145.74,1.37230684]
[1740757685261,6.8605,145.79,145.74,1.37230684]
[1740757685459,3.42,145.82,145.74,1.37230684]
[1740757685761,0.0446923,145.78,145.71,16.92]
[1740757686061,0.0446923,145.78,145.67,219.42]
[1740757686062,0.0446923,145.78,145.68,16.92]
[1740757686261,3.4646923,145.78,145.68,16.92]
[1740757686557,0.04491021,145.74,145.63,16.30341341]
[1740757686763,0.04491021,145.74,145.64,16.92]
[1740757687061,0.04317108,145.7,145.64,16.92]
[1740757687658,0.04317108,145.7,145.64,33.22341341]
[1740757687968,7.108e-05,145.7,145.69,6.8651]
[1740757688166,7.108e-05,145.7,145.69,23.16851341]
[1740757688465,7.108e-05,145.7,145.69,6.8651]
[1740757688661,7.108e-05,145.7,145.69,10.3051]
[1740757688863,7.108e-05,145.7,145.69,6.8651]
[1740757689063,7.108e-05,145.7,145.69,26.60851341]
[1740757689266,7.108e-05,145.7,145.69,23.16851341]
[1740757689659,6.8591,145.82,145.74,6.8623]
[1740757689866,3.42,145.82,145.75,16.30341341]
[1740757690159,3.42,145.82,145.76,16.30341341]
[1740757690464,6.8572,145.86,145.77,16.30341341]
[1740757690667,10.2772,145.86,145.79,6.86]
[1740757690864,0.04355921,145.83,145.8,16.34866469]
[1740757691166,0.04355921,145.83,145.81,16.30341341]
[1740757691361,0.04355921,145.83,145.8,16.96525128]
[1740757691662,0.04355921,145.83,145.81,16.55111646]
[1740757691865,0.04355921,145.83,145.82,16.55111646]
[1740757692162,0.04355921,145.83,145.82,23.41011646]
[1740757692465,5.921e-05,145.83,145.82,23.41011646]
[1740757693563,5.921e-05,145.83,145.82,16.55111646]
[1740757693766,3.42005921,145.83,145.8,0.04525128]
[1740757693969,3.42005921,145.83,145.81,16.55747129]
[1740757694268,3.42005921,145.83,145.8,0.04525128]
[1740757694463,3.42005921,145.83,145.7,219.5]
[1740757694663,3.42,145.83,145.69,6.8651]
[1740757694966,3.42,145.83,145.69,16.92]
[1740757695166,3.42,145.83,145.7,3.5616]
[1740757695358,6.8593,145.82,145.7,3.5616]
[1740757695559,0.04530903,145.78,145.75,0.04475721]
[1740757695766,0.04530903,145.78,145.75,16.96475721]
[1740757695972,232.31884115,145.87,145.75,16.96475721]
[1740757695973,6.8577,145.85,145.75,16.96475721]
[1740757696168,7.0491,145.87,145.76,3.5644]
[1740757696376,3.42,145.87,145.76,3.5644]
[1740757696571,3.42,145.87,145.77,3.5616]
[1740757696765,3.42,145.87,145.83,6.8581]
[1740757696964,3.42,145.87,145.77,3.5616]
[1740757696965,3.42,145.87,145.82,16.92]
[1740757697166,0.04762898,145.86,145.84,0.04682481]
[1740757697366,3.6029,145.97,145.88,6.8558]
[1740757697567,7.0947,145.97,145.82,16.92]
[1740757697871,10.5147,145.97,145.82,16.92]
[1740757698073,6.8535,145.94,145.82,16.92]
[1740757698273,10.5147,145.97,145.82,16.92]
[1740757698470,0.05003299,145.89,145.87,0.05211532]
[1740757698673,10.5147,145.97,145.88,6.8561]
[1740757698874,0.04705208,145.89,145.88,6.8561]
[1740757699174,0.05055795,145.9,145.88,6.8561]
[1740757699375,10.5147,145.97,145.82,16.92]
[1740757699565,0.05234877,145.9,145.88,0.04605256]
[1740757699769,3.5446,145.96,145.87,6.8565]
[1740757700075,6.9646,145.96,145.88,0.05198523]
[1740757700276,0.04824052,145.93,145.88,0.05198523]
[1740757700475,3.46824052,145.93,145.88,0.05198523]
[1740757701675,6.8556,145.9,145.88,0.05198523]
[1740757702072,6.8557,145.89,145.88,0.05198523]
[1740757702570,6.8568,145.87,145.81,16.9]
[1740757702875,6.8568,145.87,145.78,3.7848]
[1740757702876,3.42,145.89,145.84,6.8579]
[1740757703268,6.8565,145.88,145.84,6.8579]
[1740757703469,9.22974115,146.03,145.84,195.0]
[1740757703666,9.22974115,146.03,145.85,248.71350304]
[1740757703871,9.22974115,146.03,145.87,20.54]
[1740757704174,9.22974115,146.03,145.88,4.83778985]
[1740757704575,9.22974115,146.03,145.97,6.8519]
[1740757704774,9.22974115,146.03,145.94,16.9]
[1740757704775,36.91896461,146.0,145.94,16.9]
[1740757705371,36.91896461,146.0,145.96,0.04722455]
[1740757705672,31.91346461,146.0,145.98,6.851]
[1740757705876,26.21456461,146.0,145.96,0.04722455]
[1740757706270,26.21456461,146.0,145.99,6.851]
[1740757706478,20.41956461,146.0,145.96,0.04722455]
[1740757706874,20.41956461,146.0,145.96,6.89922455]
[1740757707076,20.41956461,146.0,145.96,0.04722455]
[1740757707976,20.41956461,146.0,145.96,6.89952455]
[1740757708371,20.41956461,146.0,145.96,0.04722455]
[1740757709272,0.00201453,146.01,145.96,0.04722455]
[1740757710576,0.00201453,146.01,145.97,16.88]
[1740757711476,0.00201453,146.01,145.97,23.7318]
[1740757711677,0.00201453,146.01,145.97,16.88]
[1740757712780,0.00201453,146.01,145.97,23.7317]
[1740757712974,0.00201453,146.01,145.97,16.88]
[1740757713175,0.00201453,146.01,145.98,6.8514]
[1740757713578,0.00201453,146.01,145.97,16.88]
[1740757713878,0.00201453,146.01,146.0,6.8505]
[1740757714280,0.00201453,146.01,146.0,10.2705]
[1740757715273,0.00201453,146.01,145.99,6.90318241]
[1740757715476,0.00201453,146.01,145.99,0.05238241]
[1740757716479,6.85211453,146.01,145.99,0.05238241]
[1740757716675,0.00201453,146.01,145.99,0.05238241]
[1740757717082,6.8505,146.0,145.99,0.05238241]
[1740757717581,6.8506,146.0,145.95,219.36]
[1740757717782,0.00201453,146.01,145.95,219.36]
[1740757718574,0.00201453,146.01,145.97,0.04321525]
[1740757718782,6.8509,146.0,145.97,0.04321525]
[1740757718980,0.00201453,146.01,145.97,0.04321525]
[1740757719379,6.8514,145.98,145.97,0.04321525]
[1740757719582,0.00201453,146.01,145.97,0.04321525]
[1740757719974,6.8514,145.98,145.97,0.04321525]
[1740757720175,3.42201453,146.01,145.88,220.59098985]
[1740757720383,190.0,146.03,145.88,237.47098985]
[1740757720581,190.0,146.02,145.81,219.22]
[1740757720782,190.0,146.02,145.82,16.88]
[1740757720783,190.0,146.01,145.82,16.88]
[1740757720975,16.88,146.0,145.82,16.88]
[1740757721280,0.04448231,145.93,145.9,0.04832367]
[1740757721482,6.8558,145.89,145.82,16.88]
[1740757721683,30.5811,146.0,145.82,16.88]
[1740757721883,190.0,145.99,145.81,219.22]
[1740757722095,6.8557,145.89,145.82,16.88]
[1740757722384,190.0,145.99,145.82,16.88]
[1740757722584,0.05069864,145.87,145.84,0.03246833]
[1740757722989,190.0,145.99,145.82,16.88]
[1740757723184,190.0,145.98,145.82,16.88]
[1740757723383,0.04427986,145.92,145.89,0.03246833]
[1740757723584,6.8566,145.87,145.82,16.88]
[1740757723984,16.88,145.94,145.82,16.88]
[1740757724184,3.499,145.93,145.78,16.88]
[1740757724586,6.8575,145.86,145.8,6.8596]
[1740757724781,6.8575,145.86,145.75,0.0953]
[1740757724782,0.04362239,145.87,145.78,16.88]
[1740757724981,3.499,145.93,145.78,16.88]
[1740757725184,0.04785688,145.84,145.78,16.88]
[1740757725482,0.05229985,145.82,145.75,0.0953]
[1740757725682,6.8588,145.83,145.77,6.8611]
[1740757725882,0.04488456,145.8,145.74,219.28]
[1740757726184,16.88,145.88,145.75,16.88]
[1740757726384,0.04356049,145.78,145.75,16.88]
[1740757726585,0.04718831,145.83,145.75,16.88]
[1740757726787,3.6539,145.87,145.75,16.88]
[1740757726788,6.8583,145.84,145.78,6.8605]
[1740757726988,0.04740449,145.8,145.75,16.88]
[1740757728786,0.04740449,145.8,145.79,6.8604]
[1740757729282,3.6539,145.87,145.75,16.88]
[1740757730496,3.6539,145.87,145.83,6.8584]
[1740757730685,0.05022498,145.82,145.75,16.88]
[1740757730880,3.6539,145.87,145.84,0.0474045]
[1740757731089,0.04977139,145.8,145.75,16.88]
[1740757731390,3.6539,145.87,145.75,16.88]
[1740757731591,13.7054,145.96,145.75,16.88]
[1740757731592,9.22974115,145.99,145.78,20.54]
[1740757731791,9.22974115,145.99,145.79,0.1814]
[1740757731991,9.22974115,145.99,145.79,15.16088367]
[1740757732188,0.0514501,145.9,145.8,2.63132578]
[1740757732389,9.22974115,145.99,145.91,6.8546]
[1740757732786,0.04506178,145.96,145.91,6.8546]
[1740757732992,0.04506178,145.96,145.89,16.88]
[1740757734388,0.04506178,145.96,145.85,16.86]
[1740757734589,3.6635,145.97,145.85,16.86]
[1740757734795,0.04456838,145.92,145.85,16.86]
[1740757735384,0.04456838,145.92,145.82,16.86]
[1740757735586,233.82609349,146.06,145.83,20.54]
[1740757735792,237.48959349,146.06,145.85,20.54]
[1740757735998,237.48959349,146.06,145.87,20.54]
[1740757736196,237.48959349,146.06,145.89,20.54]
[1740757736495,237.48959349,146.06,145.89,215.54]
[1740757736693,237.48959349,146.06,145.9,1.25870938]
[1740757736891,41.07016828,146.06,145.94,0.04456838]
[1740757737093,0.05131715,145.97,145.95,16.86]
[1740757737395,41.07016828,146.06,145.99,0.04456838]
[1740757737595,0.05126866,145.97,145.95,16.86]
[1740757737799,41.07016828,146.06,145.95,16.86]
[1740757738097,0.04364209,145.97,145.95,16.86]
[1740757738298,41.07016828,146.06,145.99,0.04456838]
[1740757738494,41.07016828,146.06,145.95,16.86]
[1740757738695,0.04999806,146.04,146.01,0.04456838]
[1740757738894,0.04999806,146.04,145.95,16.86]
[1740757739196,6.849,146.04,145.95,16.86]